bitfinex/quotes_ETHUSD_20220213
["timestamp","ask_amount","ask_price","bid_price","bid_amount"]
[1644749406712,0.00402933,2932.0,2931.3,2.02324]
[1644749406914,0.00402933,2932.0,2931.4,4.17877205]
[1644749407111,0.00402933,2932.0,2931.5,0.85268]
[1644749407309,0.00402933,2932.0,2931.6,3.33043513]
[1644749407583,0.00402933,2932.1,2931.6,3.33043513]
[1644749407709,0.00402933,2932.2,2931.7,1.0]
[1644749407911,0.01097685,2931.9,2931.7,1.0]
[1644749408853,0.00402933,2932.2,2931.7,1.0]
[1644749409254,0.01097685,2931.9,2931.8,3.26689189]
[1644749409472,0.01097685,2931.9,2931.7,1.0]
[1644749409666,0.01097685,2931.9,2931.6,2.66427]
[1644749409667,0.00995363,2931.9,2931.6,2.66427]
[1644749409854,0.00995363,2931.9,2931.7,1.0]
[1644749410261,0.65661433,2932.3,2931.6,3.85452643]
[1644749410461,0.65661433,2932.3,2931.9,0.00111571]
[1644749410866,0.652585,2932.1,2931.9,0.00111571]
[1644749411669,0.66356154,2932.1,2931.9,0.00111571]
[1644749412289,3.76795468,2932.0,2931.9,0.00111571]
[1644749412521,8.28586968,2932.0,2931.9,0.00111571]
[1644749412707,9.1528952,2932.0,2931.9,0.00111571]
[1644749412912,4.1528952,2932.0,2931.9,0.00111571]
[1644749413313,5.60441263,2932.0,2931.9,0.00111571]
[1644749413718,4.73738711,2932.0,2931.9,0.00111571]
[1644749414419,4.73738711,2932.0,2931.9,1.571e-05]
[1644749414420,9.73738711,2932.0,2931.9,1.571e-05]
[1644749414620,0.0008,2931.7,2930.2,0.1705]
[1644749414817,5.65039812,2931.2,2930.2,0.1705]
[1644749415116,5.36742592,2931.1,2930.2,0.1705]
[1644749415325,2.4060241,2931.0,2930.2,0.1705]
[1644749415529,4.80830304,2930.9,2930.2,0.1705]
[1644749415717,1.45151743,2930.8,2930.2,0.1705]
[1644749415916,3.21975679,2930.7,2930.2,0.1705]
[1644749416137,1.45151743,2930.6,2930.2,0.1705]
[1644749416571,1.45151743,2930.5,2930.2,0.1705]
[1644749416765,1.45151743,2930.4,2930.2,0.1705]
[1644749416958,1.45151743,2930.3,2930.2,0.1705]
[1644749417167,1.13722933,2930.9,2930.3,0.85309]
[1644749417361,1.45175272,2930.8,2930.3,0.85309]
[1644749417559,1.45175272,2930.8,2930.2,0.1705]
[1644749417766,1.45175272,2930.7,2930.2,0.1705]
[1644749417959,1.45175272,2930.6,2930.2,0.1705]
[1644749418172,1.45175272,2930.5,2930.2,0.1705]
[1644749418364,0.00974584,2931.0,2930.2,0.1705]
[1644749418571,1.45173517,2930.9,2930.2,0.1705]
[1644749418762,1.45173517,2930.8,2930.2,0.1705]
[1644749418962,1.45173517,2930.7,2930.2,0.1705]
[1644749419168,1.45173517,2930.6,2930.2,0.1705]
[1644749419363,1.45173517,2930.5,2930.2,0.1705]
[1644749419574,1.45173517,2930.4,2930.2,0.1705]
[1644749419763,0.00402933,2930.9,2930.2,0.1705]
[1644749419764,1.45173517,2930.3,2930.2,0.1705]
[1644749420024,2.10616262,2930.9,2930.2,0.1705]
[1644749420231,1.45173517,2930.8,2930.2,0.1705]
[1644749420526,1.45173517,2930.7,2930.2,0.1705]
[1644749420776,0.00402933,2930.9,2930.1,0.51645763]
[1644749420777,1.45173517,2930.6,2930.1,0.51645763]
[1644749420929,2.4494224,2930.6,2930.1,0.51645763]
[1644749421228,1.45173517,2930.5,2930.1,0.51645763]
[1644749422427,1.45173517,2930.4,2930.1,0.51645763]
[1644749422628,1.45173517,2930.3,2930.1,0.51645763]
[1644749422827,0.65442745,2930.9,2930.2,0.1706]
[1644749423092,1.45191922,2930.8,2930.1,0.51645763]
[1644749433064,3.39818911,2930.7,2930.1,0.51645763]
[1644749433266,1.45191922,2930.6,2930.1,0.51645763]
[1644749433466,3.10927,2930.5,2930.1,0.51645763]
[1644749433671,1.45191922,2930.4,2930.1,0.51645763]
[1644749433866,0.00402933,2930.9,2930.1,0.51645763]
[1644749434065,1.45185545,2930.8,2930.1,0.51645763]
[1644749435613,3.08634893,2930.7,2930.1,0.51645763]
[1644749435812,1.45185545,2930.6,2930.1,0.51645763]
[1644749436234,1.45185545,2930.8,2930.1,0.81645763]
[1644749436426,1.45178141,2930.7,2930.1,0.81645763]
[1644749436613,1.45178141,2930.6,2930.1,0.81645763]
[1644749436814,0.00402933,2930.9,2930.1,0.51645763]
[1644749437018,1.45175403,2930.8,2930.1,0.81645763]
[1644749438618,1.45175403,2930.8,2930.1,1.66959763]
[1644749438855,3.07457983,2930.7,2930.1,0.51645763]
[1644749439055,1.45175403,2930.6,2930.1,0.51645763]
[1644749439489,1.45175403,2930.5,2930.1,0.51645763]
[1644749439655,0.00402933,2930.9,2930.1,0.51645763]
[1644749439864,1.4518132,2930.8,2930.1,0.51645763]
[1644749441265,3.09350393,2930.7,2930.1,0.51645763]
[1644749441461,1.4518132,2930.6,2930.1,0.51645763]
[1644749441867,1.4518132,2930.5,2930.1,0.51645763]
[1644749442062,1.4518132,2930.4,2930.1,0.51645763]
[1644749442265,1.4518132,2930.8,2930.1,0.51645763]
[1644749442516,4.74408635,2930.7,2930.1,0.51645763]
[1644749442763,4.54993404,2930.6,2930.1,0.51645763]
[1644749442904,1.45187751,2930.5,2930.1,0.51645763]
[1644749443117,1.45187751,2930.4,2930.1,0.51645763]
[1644749443307,0.00402933,2930.9,2930.1,0.51645763]
[1644749443520,1.45187923,2930.8,2930.1,0.51645763]
[1644749443716,3.27232848,2930.7,2930.1,0.51645763]
[1644749443904,1.45187923,2930.6,2930.1,0.51645763]
[1644749444305,1.45187923,2930.5,2930.1,0.51645763]
[1644749444506,1.45187923,2930.4,2930.1,0.51645763]
[1644749444705,1.45187923,2930.3,2930.1,0.51645763]
[1644749444907,0.00402933,2930.9,2930.1,0.51645763]
[1644749445114,1.4518847,2930.8,2930.1,0.51645763]
[1644749445311,3.30089984,2930.7,2930.1,0.51645763]
[1644749445508,1.4518847,2930.6,2930.1,0.51645763]
[1644749445714,0.00402933,2930.9,2930.1,0.51645763]
[1644749445715,1.4518847,2930.5,2930.1,0.51645763]
[1644749445973,3.34463862,2930.9,2930.1,0.51645763]
[1644749446112,1.45181958,2930.8,2930.1,0.51645763]
[1644749446384,0.00402933,2931.1,2930.1,1.84167892]
[1644749446565,1.46206479,2931.0,2930.1,1.84167892]
[1644749446762,1.45164893,2930.9,2930.1,2.14167892]
[1644749446959,1.45164893,2930.9,2930.1,1.84167892]
[1644749447160,1.45164893,2930.9,2930.1,2.14167892]
[1644749451221,1.45164893,2930.9,2930.2,0.4706]
[1644749451512,1.45164893,2930.9,2930.2,1.1706]
[1644749452146,3.14432668,2930.8,2930.2,1.1706]
[1644749452321,1.45164893,2930.7,2930.2,1.1706]
[1644749452511,1.45164893,2930.6,2930.2,1.1706]
[1644749452713,3.28748567,2931.0,2930.2,0.1706]
[1644749452918,1.45175987,2930.9,2930.2,0.1706]
[1644749454958,3.20833333,2930.8,2930.1,0.81645763]
[1644749455164,1.45175987,2930.7,2930.1,0.81645763]
[1644749455426,3.39628547,2930.6,2930.1,0.81645763]
[1644749455565,1.45175987,2930.5,2930.1,0.81645763]
[1644749455966,1.45175987,2930.8,2930.1,0.81645763]
[1644749456164,4.67547369,2930.7,2930.1,0.81645763]
[1644749456370,1.45175987,2930.6,2930.1,0.81645763]
[1644749456961,3.08003211,2930.5,2930.1,0.81645763]
[1644749457163,1.45175987,2930.4,2930.1,0.81645763]
[1644749457363,1.45175987,2930.3,2930.1,0.81645763]
[1644749457622,1.45175987,2930.2,2930.1,0.81645763]
[1644749458021,1.45175987,2930.6,2930.1,0.81645763]
[1644749459420,3.05397223,2930.5,2930.1,0.81645763]
[1644749459630,1.45175987,2930.4,2930.1,0.81645763]
[1644749459828,3.19471677,2930.7,2930.1,0.81645763]
[1644749459829,1.45175987,2930.3,2930.1,0.81645763]
[1644749460033,1.45175987,2930.2,2930.1,0.81645763]
[1644749460224,1.45175987,2930.2,2930.1,0.51645763]
[1644749460641,1.45175987,2930.6,2930.1,0.51645763]
[1644749460878,1.45175987,2930.5,2930.1,0.51645763]
[1644749463758,1.45175987,2930.4,2930.1,0.51645763]
[1644749463967,1.45175987,2930.3,2930.1,0.51645763]
[1644749464166,1.45175987,2930.2,2930.1,0.51645763]
[1644749464364,3.16423125,2930.6,2930.1,0.51645763]
[1644749464563,1.45175987,2930.5,2930.1,0.51645763]
[1644749469066,1.45175987,2930.4,2930.1,0.51645763]
[1644749469271,1.45175987,2930.3,2930.1,0.51645763]
[1644749469461,1.45175987,2930.6,2930.1,0.51645763]
[1644749469661,1.45175987,2930.5,2930.1,0.51645763]
[1644749469863,1.45175987,2930.4,2930.1,0.51645763]
[1644749470083,1.45175987,2930.3,2930.1,0.51645763]
[1644749470282,1.45175987,2930.2,2930.1,0.51645763]
[1644749470665,1.45175987,2930.6,2930.1,0.51645763]
[1644749470977,3.10968271,2930.5,2930.1,0.51645763]
[1644749471166,1.45175987,2930.4,2930.1,0.51645763]
[1644749471766,1.45175987,2930.3,2930.1,0.51645763]
[1644749471966,1.45175987,2930.2,2930.1,0.51645763]
[1644749472618,1.45175987,2930.6,2930.1,0.51645763]
[1644749473524,3.13194225,2930.5,2930.1,0.51645763]
[1644749473731,1.45175987,2930.4,2930.1,0.51645763]
[1644749477068,1.45175987,2930.3,2930.1,0.51645763]
[1644749477426,1.45175987,2930.2,2930.1,0.51645763]
[1644749477867,1.45175987,2930.6,2930.1,0.51645763]
[1644749478269,3.06370967,2930.5,2930.1,0.51645763]
[1644749478468,1.45175987,2930.4,2930.1,0.51645763]
[1644749481334,1.45175987,2930.3,2930.1,0.51645763]
[1644749481522,1.45175987,2930.2,2930.1,0.51645763]
[1644749481721,2.10215799,2930.6,2930.1,0.51645763]
[1644749481920,1.45175987,2930.5,2930.1,0.51645763]
[1644749482122,3.9008734,2930.7,2930.1,0.51645763]
[1644749482123,1.45175987,2930.4,2930.1,0.51645763]
[1644749482323,1.45175987,2930.3,2930.1,0.51645763]
[1644749482523,1.45175987,2930.6,2930.1,0.51645763]
[1644749482723,1.45175987,2930.5,2930.1,0.51645763]
[1644749482927,1.45175987,2930.4,2930.1,0.81645763]
[1644749483135,1.45175987,2930.7,2930.1,1.11645763]
[1644749483324,1.45175987,2930.6,2930.1,1.11645763]
[1644749483524,1.45175987,2930.5,2930.1,1.11645763]
[1644749483769,1.45175987,2930.4,2930.1,2.14168892]
[1644749483965,0.01036668,2931.0,2930.2,1.02366]
[1644749484238,2.11241691,2931.0,2930.2,1.32366]
[1644749484365,1.45165211,2930.9,2930.3,0.17209129]
[1644749484965,3.94235733,2931.3,2930.3,0.17209129]
[1644749484966,1.45165211,2930.8,2930.3,0.17209129]
[1644749485164,1.45165211,2930.7,2930.3,0.17209129]
[1644749485366,1.45165211,2930.6,2930.3,0.17209129]
[1644749485567,1.45165211,2930.5,2930.3,0.17209129]
[1644749485766,1.45165211,2930.4,2930.3,0.17209129]
[1644749486166,0.65039812,2931.0,2930.3,0.17209129]
[1644749486408,0.66018061,2931.0,2930.3,1.01068335]
[1644749486571,1.45165211,2930.9,2930.3,1.01068335]
[1644749487374,1.45165211,2930.8,2930.3,1.01068335]
[1644749487609,1.45165211,2930.7,2930.3,1.18128335]
[1644749487810,1.45165211,2930.6,2930.3,1.18128335]
[1644749488019,1.45165211,2930.5,2930.3,1.18128335]
[1644749488239,1.45165211,2930.4,2930.3,1.18128335]
[1644749488410,0.65039812,2930.9,2930.3,1.18128335]
[1644749488411,2.10205023,2930.9,2930.3,1.18128335]
[1644749488721,1.45165211,2930.8,2930.3,1.18128335]
[1644749488911,1.45165211,2930.7,2930.3,1.18128335]
[1644749489117,1.45165211,2930.9,2930.3,1.18128335]
[1644749489415,1.45165211,2930.8,2930.3,1.18128335]
[1644749489629,1.45165211,2930.7,2930.3,1.18128335]
[1644749489813,0.00980246,2931.0,2930.3,0.34269129]
[1644749490014,1.45063349,2930.9,2930.3,0.34269129]
[1644749491021,0.0098419,2931.0,2930.3,1.46036873]
[1644749491459,0.0098419,2931.0,2930.3,2.46036873]
[1644749491861,0.00402933,2931.1,2930.4,0.85306]
[1644749492281,0.009842,2931.0,2930.5,0.3]
[1644749493060,0.00402933,2931.1,2930.5,0.3]
[1644749493467,0.00983957,2931.0,2930.6,0.51178]
[1644749494268,0.00402933,2931.3,2930.6,0.51178]
[1644749494768,0.00983633,2931.0,2930.4,1.2107]
[1644749495614,0.65039812,2931.1,2930.4,2.06376]
[1644749495914,0.00983613,2931.0,2930.4,2.06376]
[1644749496130,0.00983613,2931.0,2930.5,1.57413288]
[1644749496314,0.00983613,2931.0,2930.5,2.57413288]
[1644749496718,0.00402933,2931.3,2930.5,2.57413288]
[1644749496719,3.50402933,2931.3,2930.5,2.57413288]
[1644749496917,0.00983649,2931.0,2930.5,2.57413288]
[1644749497516,0.00983649,2931.0,2930.5,3.93892288]
[1644749497722,0.00983649,2931.0,2930.5,2.57413288]
[1644749497916,0.65442745,2931.5,2930.5,2.57413288]
[1644749498116,0.00983681,2931.0,2930.5,2.57413288]
[1644749499166,0.00402933,2931.3,2930.5,2.57413288]
[1644749499382,0.00983681,2931.0,2930.5,2.57413288]
[1644749500367,0.00402933,2931.3,2930.5,2.57413288]
[1644749500588,0.00983677,2931.0,2930.5,2.57413288]
[1644749500783,0.00983677,2931.0,2930.5,3.42712288]
[1644749501370,0.00983677,2931.0,2930.6,0.68387129]
[1644749501579,0.00402933,2931.3,2930.8,0.85284]
[1644749501769,0.00402933,2931.5,2930.8,1.85284]
[1644749501971,0.00983674,2931.0,2930.8,2.15284]
[1644749502173,0.00983674,2931.0,2930.8,2.32493129]
[1644749502617,0.00983674,2931.0,2930.8,2.15284]
[1644749502819,0.00402933,2931.5,2930.8,1.3]
[1644749503019,0.00983681,2931.0,2930.8,1.3]
[1644749503212,0.00983681,2931.0,2930.8,0.3]
[1644749503616,0.00983681,2931.0,2930.7,0.85297]
[1644749503816,0.00983681,2931.0,2930.8,0.1705]
[1644749504035,0.00402933,2931.5,2930.8,0.1705]
[1644749504216,0.00983688,2931.0,2930.8,0.1705]
[1644749505018,0.00983688,2931.0,2930.8,0.34259129]
[1644749505218,0.00402933,2931.5,2930.8,0.34259129]
[1644749505419,0.0098368,2931.0,2930.8,0.34259129]
[1644749506274,0.00402933,2931.5,2930.8,0.34259129]
[1644749506461,0.0098368,2931.0,2930.8,0.34259129]
[1644749507467,0.00402933,2931.5,2930.8,0.34259129]
[1644749507865,0.00983679,2931.0,2930.8,0.34259129]
[1644749508665,0.00402933,2931.5,2930.8,0.34259129]
[1644749509073,0.00984002,2931.0,2930.8,0.34259129]
[1644749510017,0.00402933,2931.5,2930.8,0.34259129]
[1644749510228,0.00984002,2931.0,2930.8,0.34259129]
[1644749511222,0.00402933,2931.5,2930.8,0.34259129]
[1644749511438,0.00984312,2931.0,2930.8,0.34259129]
[1644749512322,0.00402933,2931.5,2930.8,0.34259129]
[1644749512525,0.00983967,2931.0,2930.8,0.34259129]
[1644749513330,0.00892434,2931.0,2930.8,0.34259129]
[1644749513536,0.00402933,2931.5,2930.8,3.9381911]
[1644749513850,0.0008,2931.7,2931.0,0.3]
[1644749514087,0.0008,2931.7,2931.1,1.02480129]
[1644749514276,1.45607888,2931.7,2931.1,2.32480129]
[1644749514479,1.45124955,2931.6,2931.2,0.17209129]
[1644749514677,0.00402933,2931.6,2931.2,0.68372129]
[1644749514924,0.0008,2931.7,2931.2,0.68372129]
[1644749515082,0.00578883,2931.5,2931.2,1.17209129]
[1644749515279,0.00578883,2931.5,2931.2,0.17209129]
[1644749515477,0.00578883,2931.5,2931.1,2.15271]
[1644749515787,0.00578883,2931.5,2931.1,1.15271]
[1644749516006,0.0008,2931.7,2931.1,2.15271]
[1644749516180,0.01038445,2931.4,2931.1,2.15271]
[1644749516498,0.01038445,2931.4,2931.2,0.51169]
[1644749516678,0.01038445,2931.4,2931.2,1.64019]
[1644749516879,0.01038445,2931.4,2931.2,2.81228129]
[1644749517136,0.0008,2931.7,2931.2,2.81228129]
[1644749517526,0.01038445,2931.4,2931.2,2.81228129]
[1644749517721,0.01038445,2931.4,2931.3,1.31869498]
[1644749518209,0.01038445,2931.4,2931.3,1.61869498]
[1644749518322,0.0008,2931.7,2931.3,1.61869498]
[1644749518535,0.01036546,2931.5,2931.3,1.61869498]
[1644749519548,0.0008,2931.7,2931.3,1.61869498]
[1644749519724,0.01036538,2931.5,2931.3,1.61869498]
[1644749520725,0.0008,2931.7,2931.3,1.61869498]
[1644749520926,0.01036538,2931.5,2931.3,1.61869498]
[1644749521961,0.0008,2931.7,2931.3,1.61869498]
[1644749522162,0.01036665,2931.5,2931.3,1.61869498]
[1644749523165,0.0008,2931.7,2931.3,1.61869498]
[1644749523366,0.01036665,2931.5,2931.3,1.61869498]
[1644749524163,0.1368,2934.1,2931.3,1.61869498]
[1644749524368,0.86558578,2932.8,2931.9,0.40748092]
[1644749524567,0.81496184,2931.8,2931.6,4.54246459]
[1644749524786,0.81496184,2931.8,2931.6,0.3]
[1644749525218,0.81496184,2931.8,2931.5,3.51704]
[1644749525219,0.81496184,2931.8,2931.5,3.81704]
[1644749525442,0.81496184,2931.8,2931.6,3.24571059]
[1644749525629,0.81496184,2931.8,2931.6,0.17209129]
[1644749525818,0.81496184,2931.8,2931.6,3.47428998]
[1644749526225,0.81496184,2931.8,2931.7,1.6]
[1644749526420,0.81496184,2931.8,2931.7,3.99353932]
[1644749526623,0.81496184,2931.8,2931.7,3.56563061]
[1644749526820,0.81496184,2931.8,2931.7,4.56563061]
[1644749528022,29.15868037,2933.9,2931.8,2.25]
[1644749528342,0.01098393,2932.3,2931.8,5.0203]
[1644749528542,1.45099551,2932.2,2931.8,2.7703]
[1644749528766,1.45099551,2932.2,2931.8,1.6]
[1644749529164,1.45099551,2932.2,2932.0,0.90160237]
[1644749529385,0.01098447,2932.3,2932.0,1.90160237]
[1644749529564,1.45100733,2932.2,2932.0,2.20160237]
[1644749529966,1.45100733,2932.2,2932.1,5.0]
[1644749530167,1.45100733,2932.2,2932.1,8.53369565]
[1644749530369,0.1705,2933.0,2932.1,6.3]
[1644749530610,0.0109848,2932.3,2932.2,4.26928987]
[1644749530779,0.0109848,2932.3,2932.2,1.0]
[1644749531373,1.46192166,2932.3,2932.2,4.29768623]
[1644749531571,1.45093686,2932.3,2932.2,4.29768623]
[1644749531788,0.1705,2933.0,2932.2,4.59768623]
[1644749531789,0.01098482,2932.4,2932.2,4.59768623]
[1644749531973,0.01098482,2932.4,2932.3,9.99667032]
[1644749532174,0.01098482,2932.4,2932.3,10.29667032]
[1644749532373,0.01098482,2932.4,2932.3,11.29667032]
[1644749532840,0.1703,2933.5,2932.9,0.88053428]
[1644749533016,0.04392993,2933.1,2932.3,6.29667032]
[1644749533320,1.45074431,2933.0,2932.6,5.0]
[1644749533619,1.45074431,2933.0,2932.8,5.0]
[1644749534116,1.46172811,2933.0,2932.8,5.0]
[1644749534318,1.45074431,2932.9,2932.8,5.0]
[1644749534822,1.45074431,2932.9,2932.8,5.95019]
[1644749535424,1.45074431,2932.9,2932.5,0.1703]
[1644749535726,1.45074431,2932.8,2932.2,3.5617]
[1644749536365,1.45074431,2932.7,2932.2,4.5126552]
[1644749536570,1.46172874,2932.6,2932.3,5.0]
[1644749536771,1.46172874,2932.6,2932.3,8.24492619]
[1644749536772,0.01098443,2932.6,2932.3,8.24492619]
[1644749537568,0.64796115,2933.3,2932.3,5.0]
[1644749537775,0.0439308,2933.1,2932.8,0.91715257]
[1644749537978,1.45088081,2933.0,2932.8,0.91715257]
[1644749538572,1.45088081,2933.0,2932.4,5.0]
[1644749538979,1.46186461,2933.0,2932.4,5.0]
[1644749539172,1.45088081,2932.9,2932.4,5.0]
[1644749539374,1.45088081,2932.9,2932.5,1.0]
[1644749539791,1.45088081,2932.9,2932.8,1.00285927]
[1644749540011,1.45088081,2932.9,2932.5,1.0]
[1644749540215,0.01098411,2932.8,2932.4,5.0]
[1644749540817,0.01098411,2932.8,2932.5,3.30689259]
[1644749541018,0.01098411,2932.8,2932.6,5.0]
[1644749541217,0.13632772,2933.8,2932.6,5.0]
[1644749541421,0.13632772,2933.8,2933.1,0.96936065]
[1644749541422,0.04393018,2933.2,2933.1,0.96936065]
[1644749541616,0.04393018,2933.2,2932.6,5.0]
[1644749542216,0.04393018,2933.2,2932.3,5.1703]
[1644749542417,20.08,2933.7,2932.3,5.1703]
[1644749542617,0.0109838,2933.0,2932.5,1.09817259]
[1644749543617,0.1323,2933.6,2932.5,1.09817259]
[1644749543862,0.01098403,2932.9,2932.6,0.1703]
[1644749544562,0.27913946,2932.4,2932.3,5.0]
[1644749544967,0.27913946,2932.4,2932.3,8.26096491]
[1644749546378,0.27913946,2932.4,2932.3,5.0]
[1644749547171,0.27913946,2932.4,2932.3,8.2744382]
[1644749547611,0.27913946,2932.4,2932.3,8.29455526]
[1644749547826,0.27913946,2932.4,2932.3,6.0]
[1644749548024,0.27913946,2932.4,2932.3,6.6]
[1644749548423,0.27913946,2932.4,2932.3,9.88612366]
[1644749549012,0.27913946,2932.4,2932.3,6.6]
[1644749549236,0.27913946,2932.4,2932.3,6.0]
[1644749549414,0.27913946,2932.4,2932.3,5.0]
[1644749549738,0.27913946,2932.4,2932.3,6.6]
[1644749549916,0.27913946,2932.4,2932.3,9.87139142]
[1644749551022,0.27913946,2932.4,2932.3,4.87139142]
[1644749551291,0.27913946,2932.4,2932.3,3.27139142]
[1644749551466,0.27913946,2932.4,2932.3,4.27139142]
[1644749551665,0.27913946,2932.4,2932.3,4.87139142]
[1644749552065,0.004028,2933.4,2932.4,4.3]
[1644749552265,0.004028,2933.4,2932.4,6.00461]
[1644749552266,0.0104193,2932.5,2932.4,6.00461]
[1644749552465,0.0104193,2932.5,2932.4,12.23801]
[1644749552665,0.0104193,2932.5,2932.4,8.71010129]
[1644749553076,0.004028,2933.4,2932.4,8.71010129]
[1644749553266,0.64831307,2933.5,2932.7,1.06382103]
[1644749553467,0.0416698,2933.1,2932.7,1.06382103]
[1644749554384,0.64831307,2933.4,2932.7,1.06382103]
[1644749554567,2.00792626,2933.7,2932.7,1.06382103]
[1644749554568,0.01041578,2933.0,2932.7,1.06382103]
[1644749555731,0.01041585,2933.0,2932.7,1.06382103]
[1644749556323,0.01041585,2933.0,2932.9,5.0]
[1644749556723,0.01041585,2933.0,2932.9,5.3]
[1644749556927,0.65234069,2934.0,2932.9,5.3]
[1644749557132,0.04165658,2933.5,2933.2,0.92189839]
[1644749557334,0.04165658,2933.5,2933.2,1.22189839]
[1644749557942,0.65234069,2934.1,2933.2,1.22189839]
[1644749558131,0.64831307,2934.0,2933.2,0.92189839]
[1644749558327,0.64831307,2934.0,2932.9,3.9728]
[1644749558328,0.0098071,2933.5,2932.9,3.9728]
[1644749558526,0.0098071,2933.5,2933.0,0.1704]
[1644749558766,0.0098071,2933.5,2932.9,0.3]
[1644749558767,0.0098071,2933.5,2932.9,0.1703]
[1644749558960,0.0098071,2933.5,2932.8,5.4332]
[1644749559161,0.64831307,2933.7,2932.8,4.91150049]
[1644749559469,0.00980731,2933.3,2932.5,1.1915]
[1644749559665,0.00980731,2933.3,2932.5,0.1703]
[1644749559863,0.00980731,2933.3,2932.4,7.6101]
[1644749559864,0.1703,2933.2,2932.4,0.25]
[1644749560067,1.45086788,2933.1,2932.3,0.52064508]
[1644749560285,1.45086788,2933.0,2932.3,0.52064508]
[1644749560486,0.00402762,2932.9,2932.3,0.52064508]
[1644749560664,1.45086788,2932.8,2932.3,0.52064508]
[1644749561065,1.45086788,2932.7,2932.3,0.52064508]
[1644749561293,1.45086788,2932.7,2932.1,0.00981085]
[1644749561465,0.00402762,2932.6,2932.1,0.00981085]
[1644749561665,1.45086788,2932.5,2932.1,0.00981085]
[1644749562011,1.45086788,2932.5,2931.7,1.3618]
[1644749562081,0.00402762,2932.4,2931.7,1.3618]
[1644749562273,1.45086788,2932.4,2932.1,0.00983873]
[1644749562917,1.45086788,2932.4,2932.0,1.16166829]
[1644749563118,0.00575592,2932.4,2932.0,1.16166829]
[1644749563320,1.45086788,2932.3,2931.7,1.3618]
[1644749563521,0.00402762,2932.2,2931.7,0.1703]
[1644749563720,1.45086788,2932.1,2931.7,0.1703]
[1644749564529,1.45086788,2932.1,2931.2,0.1705]
[1644749564724,1.45086788,2932.1,2931.3,1.12448793]
[1644749564922,1.45086788,2932.1,2931.4,0.1705]
[1644749565128,1.45086788,2932.2,2931.4,0.1705]
[1644749565533,1.45110616,2932.1,2931.4,0.1705]
[1644749565727,1.45110616,2932.0,2931.6,0.01072057]
[1644749565926,1.45110616,2931.9,2931.6,0.01072057]
[1644749566136,1.45110616,2932.2,2931.6,0.01072057]
[1644749566364,1.45110547,2932.1,2931.6,0.01072057]
[1644749566574,1.45110547,2932.0,2931.2,0.1705]
[1644749566764,1.45110547,2931.9,2931.2,0.1705]
[1644749566961,1.45110547,2931.9,2931.8,0.01072033]
[1644749567267,1.45110547,2932.2,2931.8,0.01072033]
[1644749567471,1.45110547,2932.1,2931.8,0.01072033]
[1644749567672,1.45110547,2932.0,2931.8,0.01072033]
[1644749567862,0.18524578,2932.3,2931.2,0.1705]
[1644749567863,1.45110547,2931.9,2931.2,0.1705]
[1644749568069,1.45110547,2931.9,2931.8,0.01072025]
[1644749568377,1.45110547,2932.2,2931.8,0.01072025]
[1644749568563,1.45110547,2931.9,2931.8,0.01072025]
[1644749568761,1.45110547,2932.2,2931.8,0.01072025]
[1644749568964,1.45110547,2932.1,2931.8,0.01072025]
[1644749569162,1.45110547,2932.0,2931.2,0.1705]
[1644749569360,1.45110547,2931.9,2931.7,0.01099138]
[1644749569585,0.01098897,2932.3,2931.7,0.01099138]
[1644749569774,1.45104798,2932.2,2931.7,0.01099138]
[1644749570218,1.45104798,2932.2,2931.5,0.98609584]
[1644749570419,1.45104798,2932.1,2931.5,0.98609584]
[1644749570620,1.45104798,2932.0,2931.8,0.01062941]
[1644749570853,1.45104798,2931.9,2931.8,0.01062941]
[1644749571221,1.45104798,2932.2,2931.8,0.01062941]
[1644749571419,1.45104798,2932.2,2931.5,0.98609584]
[1644749571625,1.45104798,2932.2,2931.7,0.01062956]
[1644749571820,1.45104798,2932.1,2931.7,0.01062956]
[1644749572101,1.45104798,2932.0,2931.7,0.01062956]
[1644749572227,1.45104798,2931.9,2931.7,0.01062956]
[1644749572524,0.01062723,2932.3,2931.7,0.01062956]
[1644749572719,1.45106126,2932.2,2931.4,5.0]
[1644749572920,1.45106126,2932.1,2931.7,0.01062963]
[1644749573178,1.45106126,2932.0,2931.7,0.01062963]
[1644749573320,1.45106126,2931.9,2931.7,0.01062963]
[1644749573519,0.13592857,2932.4,2931.7,0.01062963]
[1644749573759,0.13592857,2932.4,2931.2,0.1705]
[1644749573760,1.4510682,2932.3,2931.2,0.1705]
[1644749574263,1.4510682,2932.3,2931.4,0.94962669]
[1644749574464,1.4510682,2932.3,2931.5,0.1705]
[1644749574678,1.4510682,2932.3,2931.4,0.94962669]
[1644749574863,1.5828682,2932.3,2931.4,0.94962669]
[1644749575080,1.4510682,2932.2,2931.4,0.94962669]
[1644749575265,1.4510682,2932.2,2931.3,1.32229129]
[1644749575664,20.94442626,2932.7,2931.3,1.32229129]
[1644749576065,20.08,2932.6,2931.3,1.1502]
[1644749576266,20.38,2932.6,2931.0,3.6509]
[1644749576520,0.9427806,2932.1,2931.2,1.10816573]
[1644749577817,0.1705,2932.3,2931.5,0.0109917]
[1644749578014,0.01098816,2932.4,2931.5,0.0109917]
[1644749578712,0.1705,2932.7,2931.6,0.1705]
[1644749578817,0.1705,2932.9,2931.6,0.1705]
[1644749579020,1.15889621,2932.5,2931.5,0.1705]
[1644749579213,0.00634386,2932.4,2931.5,0.1705]
[1644749579814,0.00634386,2932.4,2931.5,1.02326]
[1644749580015,0.00634386,2932.4,2931.7,5.0]
[1644749580421,0.00634386,2932.4,2931.5,1.02326]
[1644749580618,0.00634386,2932.4,2931.5,0.1705]
[1644749580819,0.00634386,2932.4,2931.2,0.1705]
[1644749580820,0.17684386,2932.4,2931.2,0.1705]
[1644749581025,0.1705,2932.4,2931.1,1.3549]
[1644749581271,0.1705,2932.4,2931.2,3.28146258]
[1644749581460,0.17684386,2932.4,2931.2,3.28146258]
[1644749581661,0.17684386,2932.4,2931.5,1.01804792]
[1644749582363,0.1705,2932.4,2931.5,1.01804792]
[1644749582561,0.18149026,2932.4,2931.8,0.01099267]
[1644749583464,0.1705,2932.4,2931.5,1.01804792]
[1644749583664,0.18149058,2932.4,2932.0,0.01099243]
[1644749583865,0.02198485,2931.9,2931.5,1.01804792]
[1644749585826,0.02198485,2931.9,2931.5,2.21054792]
[1644749587323,0.02198485,2931.9,2931.6,0.00464926]
[1644749587917,13.0805822,2932.8,2931.6,0.00464926]
[1644749588121,0.8414338,2932.5,2931.6,0.00464926]
[1644749588323,0.8414338,2932.5,2931.5,2.21054792]
[1644749588522,0.01099117,2932.3,2931.9,0.01099302]
[1644749589003,0.01099117,2932.3,2931.9,5.01099302]
[1644749589498,0.89094373,2933.1,2932.0,1.1608]
[1644749589698,0.01099115,2932.3,2932.0,1.1608]
[1644749589897,0.01099115,2932.3,2932.2,1.10795378]
[1644749590713,0.86442626,2933.3,2932.2,1.10795378]